[Event "*** Titled Tuesday Blitz"]
[Site "Chess.com"]
[Date "2020.02.04"]
[Round "8"]
[White "Korchmar_Vasiliy"]
[Black "Konavets"]
[Result "0-1"]
[WhiteElo "2807"]
[BlackElo "3015"]
[TimeControl "180+2"]
[EndTime "14:55:24 PST"]
[Termination "Konavets won on time"]

1. d4 {[%clk 0:03:01.9]} 1... Nf6 {[%clk 0:03:00.9]} 2. c4 {[%clk 0:03:03]} 2...
c5 {[%clk 0:03:01.3]} 3. d5 {[%clk 0:03:03.8]} 3... e6 {[%clk 0:03:02.7]} 4. Nc3
{[%clk 0:03:04.2]} 4... exd5 {[%clk 0:03:04.4]} 5. cxd5 {[%clk 0:03:06.1]} 5...
d6 {[%clk 0:03:06.3]} 6. Nf3 {[%clk 0:03:07.6]} 6... g6 {[%clk 0:03:05.4]} 7. g3
{[%clk 0:03:08.8]} 7... Bg7 {[%clk 0:03:06.3]} 8. Bg2 {[%clk 0:03:10.4]} 8...
O-O {[%clk 0:03:08]} 9. O-O {[%clk 0:03:11.1]} 9... Re8 {[%clk 0:03:09.9]} 10.
Bf4 {[%clk 0:03:11.4]} 10... Na6 {[%clk 0:03:11.3]} 11. Re1 {[%clk 0:03:11.9]}
11... Ne4 {[%clk 0:03:11.3]} 12. Nxe4 {[%clk 0:03:12.5]} 12... Rxe4 {[%clk
0:03:13.2]} 13. Nd2 {[%clk 0:03:13.9]} 13... Rb4 {[%clk 0:03:02.8]} 14. Rb1
{[%clk 0:03:06.9]} 14... Bxb2 {[%clk 0:02:49.7]} 15. Rxb2 {[%clk 0:02:42.3]}
15... Rxb2 {[%clk 0:02:51.6]} 16. Qa1 {[%clk 0:02:43.8]} 16... Rb4 {[%clk
0:02:28.4]} 17. Bh6 {[%clk 0:02:42.7]} 17... f6 {[%clk 0:02:29.1]} 18. Ne4
{[%clk 0:02:43.5]} 18... Rxe4 {[%clk 0:02:30.4]} 19. Bxe4 {[%clk 0:02:44]} 19...
Qe7 {[%clk 0:02:31.6]} 20. Bf3 {[%clk 0:02:39.5]} 20... Bd7 {[%clk 0:02:30.6]}
21. h4 {[%clk 0:02:29]} 21... Re8 {[%clk 0:02:29.9]} 22. Kg2 {[%clk 0:02:26.5]}
22... Nc7 {[%clk 0:02:27]} 23. Bd2 {[%clk 0:02:22.5]} 23... Nb5 {[%clk
0:02:22.9]} 24. e3 {[%clk 0:02:18.6]} 24... Bf5 {[%clk 0:02:23.9]} 25. Qb2
{[%clk 0:02:10.6]} 25... Nc7 {[%clk 0:01:34]} 26. Qxb7 {[%clk 0:02:11.5]} 26...
Be4 {[%clk 0:01:34.4]} 27. Bxe4 {[%clk 0:02:13]} 27... Qxe4+ {[%clk 0:01:35.3]}
28. Kg1 {[%clk 0:02:14.7]} 28... Nxd5 {[%clk 0:01:34.2]} 29. Qxa7 {[%clk
0:02:12]} 29... c4 {[%clk 0:01:26.6]} 30. a4 {[%clk 0:01:49.6]} 30... c3 {[%clk
0:01:25.5]} 31. Bc1 {[%clk 0:01:51.2]} 31... Nb4 {[%clk 0:01:26.2]} 32. Rd1
{[%clk 0:01:38.2]} 32... Nd3 {[%clk 0:00:57.1]} 33. Qd7 {[%clk 0:01:38.4]} 33...
Ra8 {[%clk 0:00:30.2]} 34. Qxd6 {[%clk 0:01:00.3]} 34... Ne5 {[%clk 0:00:30.8]}
35. Qe6+ {[%clk 0:01:01.4]} 35... Kg7 {[%clk 0:00:25.1]} 36. Qe7+ {[%clk
0:01:02.5]} 36... Kh6 {[%clk 0:00:22.1]} 37. Qxf6 {[%clk 0:01:03.5]} 37... Nf3+
{[%clk 0:00:23.5]} 38. Kf1 {[%clk 0:01:04.1]} 38... Rxa4 {[%clk 0:00:14.7]} 39.
Qf8+ {[%clk 0:00:58.4]} 39... Kh5 {[%clk 0:00:15.6]} 40. Qc5+ {[%clk 0:01:00]}
40... Kg4 {[%clk 0:00:15.3]} 41. Qc8+ {[%clk 0:00:56.1]} 41... Qf5 {[%clk
0:00:16.3]} 42. Qxf5+ {[%clk 0:00:25.9]} 42... gxf5 {[%clk 0:00:18.2]} 43. Rd3
{[%clk 0:00:27.4]} 43... Rc4 {[%clk 0:00:15.8]} 44. Ke2 {[%clk 0:00:26.5]} 44...
Ng1+ {[%clk 0:00:17]} 45. Kd1 {[%clk 0:00:26.8]} 45... Nh3 {[%clk 0:00:14.2]}
46. Ke2 {[%clk 0:00:26]} 46... Ng1+ {[%clk 0:00:11.8]} 47. Kd1 {[%clk
0:00:27.6]} 47... Kf3 {[%clk 0:00:11.1]} 48. e4+ {[%clk 0:00:13.7]} 48... Kxe4
{[%clk 0:00:12.2]} 49. Kc2 {[%clk 0:00:11.9]} 49... Ra4 {[%clk 0:00:05.1]} 50.
f3+ {[%clk 0:00:13.3]} 50... Ke5 {[%clk 0:00:06]} 51. Bf4+ {[%clk 0:00:13.9]}
51... Ke6 {[%clk 0:00:07.1]} 52. Rxc3 {[%clk 0:00:15]} 52... Ra2+ {[%clk
0:00:06.9]} 53. Kb3 {[%clk 0:00:16.2]} 53... Rf2 {[%clk 0:00:08]} 54. Rc6+
{[%clk 0:00:06.6]} 54... Kd5 {[%clk 0:00:05]} 55. Rd6+ {[%clk 0:00:07.3]} 55...
Kc5 {[%clk 0:00:06.4]} 56. Rf6 {[%clk 0:00:05.1]} 56... Rxf3+ {[%clk 0:00:07.5]}
57. Kc2 {[%clk 0:00:05.6]} 57... Ne2 {[%clk 0:00:08.4]} 58. Rxf5+ {[%clk
0:00:06.3]} 58... Kc4 {[%clk 0:00:10.1]} 59. Rf8 {[%clk 0:00:05.1]} 59... Nd4+
{[%clk 0:00:11.5]} 60. Kd2 {[%clk 0:00:04.5]} 60... Rf2+ {[%clk 0:00:13]} 61.
Kd1 {[%clk 0:00:04.1]} 61... Kd3 {[%clk 0:00:13.9]} 62. Kc1 {[%clk 0:00:05]}
62... Ne2+ {[%clk 0:00:09.8]} 63. Kb1 {[%clk 0:00:05.3]} 63... Nc3+ {[%clk
0:00:11]} 0-1

[Event "*** Titled Tuesday Blitz"]
[Site "Chess.com"]
[Date "2020.02.04"]
[Round "8"]
[White "enriquetejedor"]
[Black "TheBigBoss04"]
[Result "1-0"]
[WhiteElo "2544"]
[BlackElo "2656"]
[TimeControl "180+2"]
[EndTime "14:55:32 PST"]
[Termination "enriquetejedor won by resignation"]

1. d4 {[%clk 0:03:01.9]} 1... Nf6 {[%clk 0:03:00.9]} 2. Bg5 {[%clk 0:03:01.9]}
2... c5 {[%clk 0:03:00.7]} 3. d5 {[%clk 0:02:55.6]} 3... e6 {[%clk 0:02:56.7]}
4. Nc3 {[%clk 0:02:55]} 4... h6 {[%clk 0:02:53.5]} 5. Bxf6 {[%clk 0:02:42.8]}
5... Qxf6 {[%clk 0:02:53.7]} 6. Nb5 {[%clk 0:02:43.5]} 6... Qd8 {[%clk
0:02:44.4]} 7. e3 {[%clk 0:02:24]} 7... a6 {[%clk 0:02:44.3]} 8. Nc3 {[%clk
0:02:23.5]} 8... d6 {[%clk 0:02:45.4]} 9. a4 {[%clk 0:02:23.4]} 9... e5 {[%clk
0:02:40]} 10. g3 {[%clk 0:02:22.9]} 10... h5 {[%clk 0:02:39.6]} 11. h4 {[%clk
0:02:23.1]} 11... g6 {[%clk 0:02:39.1]} 12. Bh3 {[%clk 0:02:24.3]} 12... Nd7
{[%clk 0:02:36.8]} 13. Nf3 {[%clk 0:02:21.9]} 13... Bg7 {[%clk 0:02:37.4]} 14.
Ng5 {[%clk 0:02:17]} 14... Qe7 {[%clk 0:02:38.4]} 15. Nce4 {[%clk 0:02:12.1]}
15... b6 {[%clk 0:02:26]} 16. Qf3 {[%clk 0:02:04.9]} 16... Rf8 {[%clk
0:02:20.4]} 17. Nh7 {[%clk 0:02:03.2]} 17... Rh8 {[%clk 0:02:20]} 18. Nhg5
{[%clk 0:02:04.5]} 18... Rf8 {[%clk 0:01:51.8]} 19. Nh7 {[%clk 0:01:45]} 19...
Rh8 {[%clk 0:01:50.6]} 20. Bxd7+ {[%clk 0:01:45.8]} 20... Bxd7 {[%clk
0:01:48.3]} 21. Nhf6+ {[%clk 0:01:47.1]} 21... Kd8 {[%clk 0:01:45.8]} 22. a5
{[%clk 0:01:27.5]} 22... Bf5 {[%clk 0:01:14.2]} 23. axb6 {[%clk 0:01:21.4]}
23... Bxf6 {[%clk 0:01:14.5]} 24. Nxf6 {[%clk 0:01:21.1]} 24... e4 {[%clk
0:01:08.2]} 25. Qf4 {[%clk 0:01:13.8]} 25... Qxf6 {[%clk 0:01:08.7]} 26. b7
{[%clk 0:01:14.9]} 26... Rb8 {[%clk 0:01:09.7]} 27. Rxa6 {[%clk 0:01:15.9]}
27... Ke7 {[%clk 0:01:10.8]} 28. Rb6 {[%clk 0:01:12.5]} 28... Rhd8 {[%clk
0:01:03.3]} 29. g4 {[%clk 0:01:08.6]} 29... Bxg4 {[%clk 0:00:47.4]} 30. Qxe4+
{[%clk 0:01:07.5]} 30... Kf8 {[%clk 0:00:47.9]} 31. Rg1 {[%clk 0:01:04.9]} 31...
Rd7 {[%clk 0:00:41.6]} 32. Rxg4 {[%clk 0:01:01.9]} 32... hxg4 {[%clk 0:00:36.1]}
33. Qxg4 {[%clk 0:01:03.8]} 33... Qd8 {[%clk 0:00:34.8]} 34. Rc6 {[%clk
0:00:57]} 34... Rdxb7 {[%clk 0:00:33.4]} 35. h5 {[%clk 0:00:57.6]} 35... Rb4
{[%clk 0:00:32.5]} 36. Qg3 {[%clk 0:00:46.4]} 36... gxh5 {[%clk 0:00:22.8]} 37.
Rxd6 {[%clk 0:00:46.2]} 37... Qh4 {[%clk 0:00:19.2]} 38. Qe5 {[%clk 0:00:43]}
38... Kg8 {[%clk 0:00:20.1]} 39. Rh6 {[%clk 0:00:42]} 39... f6 {[%clk
0:00:14.3]} 40. Qf5 {[%clk 0:00:15.7]} 40... Qg5 {[%clk 0:00:08.1]} 41. Rg6+
{[%clk 0:00:15.7]} 41... Kh8 {[%clk 0:00:05.7]} 42. Rxg5 {[%clk 0:00:16.3]}
42... fxg5 {[%clk 0:00:07.6]} 43. Qxg5 {[%clk 0:00:17.6]} 43... Rxb2 {[%clk
0:00:08.7]} 44. Qxh5+ {[%clk 0:00:18]} 44... Kg8 {[%clk 0:00:09.4]} 45. Kf1
{[%clk 0:00:18.4]} 45... Kg7 {[%clk 0:00:08.2]} 46. Kg2 {[%clk 0:00:18.3]} 46...
R2b6 {[%clk 0:00:08.7]} 47. Qe5+ {[%clk 0:00:18.2]} 47... Kf7 {[%clk 0:00:09.4]}
48. c4 {[%clk 0:00:18.3]} 48... Rg6+ {[%clk 0:00:09.5]} 49. Kf1 {[%clk 0:00:16]}
49... Rb1+ {[%clk 0:00:10.1]} 50. Ke2 {[%clk 0:00:17.1]} 50... Rb7 {[%clk
0:00:12]} 51. Qf5+ {[%clk 0:00:17.7]} 51... Kg7 {[%clk 0:00:12]} 52. Qc8 {[%clk
0:00:19.6]} 52... Rb2+ {[%clk 0:00:10.7]} 53. Kd3 {[%clk 0:00:20.3]} 53... Rxf2
{[%clk 0:00:11.2]} 54. Qxc5 {[%clk 0:00:21.4]} 54... Rf3 {[%clk 0:00:11.7]} 55.
Qe7+ {[%clk 0:00:21.7]} 55... Kg8 {[%clk 0:00:10.9]} 56. Kd4 {[%clk 0:00:21.7]}
56... Rf7 {[%clk 0:00:09.7]} 57. Qe8+ {[%clk 0:00:22.3]} 57... Kg7 {[%clk
0:00:10.2]} 58. c5 {[%clk 0:00:22.2]} 58... Rg4+ {[%clk 0:00:10.3]} 59. e4
{[%clk 0:00:23.2]} 59... Rg1 {[%clk 0:00:11]} 60. c6 {[%clk 0:00:23.2]} 60...
Rd1+ {[%clk 0:00:11.1]} 61. Ke5 {[%clk 0:00:24.6]} 61... Rg1 {[%clk 0:00:11.8]}
62. Qd8 {[%clk 0:00:24]} 62... Rg4 {[%clk 0:00:11]} 63. c7 {[%clk 0:00:22.8]}
63... Rff4 {[%clk 0:00:12.6]} 64. Qe7+ {[%clk 0:00:19.8]} 64... Kg6 {[%clk
0:00:10.7]} 65. Qe6+ {[%clk 0:00:19.1]} 65... Kg7 {[%clk 0:00:12.4]} 66. Qxg4+
{[%clk 0:00:19.7]} 66... Rxg4 {[%clk 0:00:14.3]} 67. c8=Q {[%clk 0:00:20.8]}
67... Rg5+ {[%clk 0:00:16]} 1-0

[Event "*** Titled Tuesday Blitz"]
[Site "Chess.com"]
[Date "2020.02.04"]
[Round "8"]
[White "vladimirdamjanovic"]
[Black "Gogolev_Artemy"]
[Result "0-1"]
[WhiteElo "2613"]
[BlackElo "2525"]
[TimeControl "180+2"]
[EndTime "14:55:33 PST"]
[Termination "Gogolev_Artemy won by checkmate"]

1. d4 {[%clk 0:03:01.9]} 1... Nf6 {[%clk 0:02:55.3]} 2. c4 {[%clk 0:03:01.9]}
2... e6 {[%clk 0:02:55.9]} 3. Nf3 {[%clk 0:03:01.9]} 3... d5 {[%clk 0:02:55.2]}
4. Nc3 {[%clk 0:03:02.1]} 4... Bb4 {[%clk 0:02:52.9]} 5. cxd5 {[%clk 0:03:00.1]}
5... exd5 {[%clk 0:02:53]} 6. Bg5 {[%clk 0:03:00.1]} 6... Nbd7 {[%clk
0:02:52.3]} 7. a3 {[%clk 0:02:55.8]} 7... Bd6 {[%clk 0:02:50.3]} 8. Nxd5 {[%clk
0:02:52.8]} 8... h6 {[%clk 0:02:49]} 9. Nxf6+ {[%clk 0:02:36.4]} 9... Nxf6
{[%clk 0:02:50.9]} 10. Bh4 {[%clk 0:02:35]} 10... O-O {[%clk 0:02:34.2]} 11. e3
{[%clk 0:02:33.1]} 11... c5 {[%clk 0:02:33.4]} 12. dxc5 {[%clk 0:02:28.2]} 12...
Bxc5 {[%clk 0:02:27.8]} 13. Qxd8 {[%clk 0:02:28.9]} 13... Rxd8 {[%clk
0:02:28.1]} 14. Bxf6 {[%clk 0:02:21.8]} 14... gxf6 {[%clk 0:02:24.6]} 15. Bc4
{[%clk 0:02:17.4]} 15... b5 {[%clk 0:02:24.3]} 16. Be2 {[%clk 0:01:55.4]} 16...
b4 {[%clk 0:02:17.3]} 17. O-O {[%clk 0:01:51]} 17... bxa3 {[%clk 0:02:11.4]} 18.
bxa3 {[%clk 0:01:52.9]} 18... Rb8 {[%clk 0:01:43]} 19. Rfc1 {[%clk 0:01:49]}
19... Bd6 {[%clk 0:01:40.1]} 20. Nd4 {[%clk 0:01:41.9]} 20... Be5 {[%clk
0:01:33.2]} 21. Nc6 {[%clk 0:01:39.4]} 21... Bxa1 {[%clk 0:01:28.8]} 22. Nxd8
{[%clk 0:01:35.5]} 22... Bb2 {[%clk 0:01:20.3]} 23. Rc7 {[%clk 0:01:11.8]} 23...
Bxa3 {[%clk 0:00:41.3]} 24. Rxa7 {[%clk 0:01:07.2]} 24... Bc5 {[%clk 0:00:37.3]}
25. Ra5 {[%clk 0:00:41]} 25... Rb1+ {[%clk 0:00:13.2]} 26. Bf1 {[%clk
0:00:40.5]} 26... Bb6 {[%clk 0:00:13.9]} 27. Rb5 {[%clk 0:00:28.7]} 27... Rxb5
{[%clk 0:00:12.4]} 28. Bxb5 {[%clk 0:00:28.4]} 28... Bxd8 {[%clk 0:00:14.3]} 29.
g3 {[%clk 0:00:19.6]} 29... Bb7 {[%clk 0:00:14.2]} 30. f4 {[%clk 0:00:20.7]}
30... Be4 {[%clk 0:00:14.9]} 31. Kf2 {[%clk 0:00:21.6]} 31... f5 {[%clk
0:00:15.7]} 32. Bc4 {[%clk 0:00:22.7]} 32... Kg7 {[%clk 0:00:16.6]} 33. h3
{[%clk 0:00:23.7]} 33... Kf6 {[%clk 0:00:16.1]} 34. Bb3 {[%clk 0:00:24.8]} 34...
Bb6 {[%clk 0:00:16.9]} 35. Bc4 {[%clk 0:00:25.7]} 35... Bc6 {[%clk 0:00:17.4]}
36. Bb3 {[%clk 0:00:25.4]} 36... Bd7 {[%clk 0:00:18.5]} 37. Bc4 {[%clk
0:00:26.6]} 37... Be6 {[%clk 0:00:19.6]} 38. Bd3 {[%clk 0:00:27.9]} 38... Bd5
{[%clk 0:00:20.1]} 39. Bc2 {[%clk 0:00:28.6]} 39... Ke6 {[%clk 0:00:21.2]} 40.
g4 {[%clk 0:00:28.6]} 40... Be4 {[%clk 0:00:20.1]} 41. Bb3+ {[%clk 0:00:23.8]}
41... Kf6 {[%clk 0:00:19.9]} 42. Ba2 {[%clk 0:00:24.4]} 42... Bc2 {[%clk
0:00:19.8]} 43. Bc4 {[%clk 0:00:24.2]} 43... Bd1 {[%clk 0:00:19.1]} 44. gxf5
{[%clk 0:00:22.6]} 44... Bc2 {[%clk 0:00:20]} 45. Kf3 {[%clk 0:00:21.2]} 45...
Bxf5 {[%clk 0:00:20.2]} 46. e4 {[%clk 0:00:22.7]} 46... Bxh3 {[%clk 0:00:18.1]}
47. e5+ {[%clk 0:00:19.8]} 47... Kg6 {[%clk 0:00:17.8]} 48. Kg3 {[%clk
0:00:19.4]} 48... Be6 {[%clk 0:00:18.5]} 49. Bd3+ {[%clk 0:00:19.7]} 49... Bf5
{[%clk 0:00:19.8]} 50. Bc4 {[%clk 0:00:21.1]} 50... h5 {[%clk 0:00:20.3]} 51.
Bb3 {[%clk 0:00:19.9]} 51... Ba5 {[%clk 0:00:20.6]} 52. Kf3 {[%clk 0:00:20.1]}
52... Bd2 {[%clk 0:00:18.6]} 53. Bc4 {[%clk 0:00:20.6]} 53... Bc1 {[%clk
0:00:19.4]} 54. Bb3 {[%clk 0:00:21.6]} 54... h4 {[%clk 0:00:19.4]} 55. Bc4
{[%clk 0:00:22.8]} 55... Be6 {[%clk 0:00:18.8]} 56. Bd3+ {[%clk 0:00:20.2]}
56... Kh5 {[%clk 0:00:19.4]} 57. f5 {[%clk 0:00:17.3]} 57... Bd5+ {[%clk
0:00:20.3]} 58. Kf2 {[%clk 0:00:18.7]} 58... Kg5 {[%clk 0:00:19.6]} 59. e6
{[%clk 0:00:14.2]} 59... fxe6 {[%clk 0:00:20.8]} 60. fxe6 {[%clk 0:00:16.1]}
60... Bxe6 {[%clk 0:00:21.7]} 61. Kg2 {[%clk 0:00:18]} 61... Bd5+ {[%clk
0:00:22]} 62. Kh3 {[%clk 0:00:19]} 62... Be6+ {[%clk 0:00:22]} 63. Kg2 {[%clk
0:00:20.4]} 63... Bf4 {[%clk 0:00:23.2]} 64. Be4 {[%clk 0:00:20.9]} 64... h3+
{[%clk 0:00:23.4]} 65. Kh1 {[%clk 0:00:22.3]} 65... Kh4 {[%clk 0:00:24.4]} 66.
Ba8 {[%clk 0:00:22]} 66... Kg3 {[%clk 0:00:25.1]} 67. Be4 {[%clk 0:00:22.8]}
67... Bb3 {[%clk 0:00:25.9]} 68. Kg1 {[%clk 0:00:12.9]} 68... Be3+ {[%clk
0:00:26.6]} 69. Kh1 {[%clk 0:00:12.9]} 69... Bc4 {[%clk 0:00:27.1]} 70. Bf5
{[%clk 0:00:08.4]} 70... Bd5+ {[%clk 0:00:26.7]} 71. Be4 {[%clk 0:00:08.2]}
71... Bxe4# {[%clk 0:00:27.8]} 0-1

[Event "*** Titled Tuesday Blitz"]
[Site "Chess.com"]
[Date "2020.02.04"]
[Round "8"]
[White "Al_Shima"]
[Black "CM_Perligero"]
[Result "1-0"]
[WhiteElo "2427"]
[BlackElo "2089"]
[TimeControl "180+2"]
[EndTime "14:55:37 PST"]
[Termination "Al_Shima won by checkmate"]

1. b3 {[%clk 0:03:01.9]} 1... Nf6 {[%clk 0:02:57.9]} 2. Bb2 {[%clk 0:03:02.5]}
2... g6 {[%clk 0:02:59]} 3. Bxf6 {[%clk 0:03:02.4]} 3... exf6 {[%clk 0:02:58.8]}
4. c4 {[%clk 0:03:04]} 4... Bg7 {[%clk 0:03:00]} 5. Nc3 {[%clk 0:03:04.7]} 5...
O-O {[%clk 0:03:00.8]} 6. g3 {[%clk 0:03:05.9]} 6... b6 {[%clk 0:03:00.8]} 7.
Bg2 {[%clk 0:03:06.7]} 7... Nc6 {[%clk 0:03:02.3]} 8. b4 {[%clk 0:03:05.7]} 8...
Bb7 {[%clk 0:03:01.9]} 9. b5 {[%clk 0:03:06.4]} 9... Na5 {[%clk 0:03:01.3]} 10.
Bxb7 {[%clk 0:03:04.7]} 10... Nxb7 {[%clk 0:03:01.3]} 11. Nf3 {[%clk 0:03:01.9]}
11... f5 {[%clk 0:03:01.4]} 12. Qc2 {[%clk 0:03:01.2]} 12... Nd6 {[%clk
0:03:01]} 13. d3 {[%clk 0:03:00.2]} 13... Qf6 {[%clk 0:03:01.3]} 14. Rc1 {[%clk
0:02:59.6]} 14... f4 {[%clk 0:02:58.7]} 15. Nd5 {[%clk 0:02:59.6]} 15... Qd8
{[%clk 0:02:45.4]} 16. Nxf4 {[%clk 0:02:59.6]} 16... c6 {[%clk 0:02:44.7]} 17.
a4 {[%clk 0:02:58.7]} 17... Re8 {[%clk 0:02:39.7]} 18. O-O {[%clk 0:02:55.4]}
18... Nb7 {[%clk 0:02:39.7]} 19. e3 {[%clk 0:02:53.3]} 19... Rc8 {[%clk
0:02:34.8]} 20. Qa2 {[%clk 0:02:50.4]} 20... Qf6 {[%clk 0:02:24.7]} 21. h4
{[%clk 0:02:49.2]} 21... h6 {[%clk 0:02:24.9]} 22. Kg2 {[%clk 0:02:49.7]} 22...
g5 {[%clk 0:02:20]} 23. hxg5 {[%clk 0:02:45.1]} 23... hxg5 {[%clk 0:02:19.6]}
24. Nh5 {[%clk 0:02:45.6]} 24... Qg6 {[%clk 0:02:20.1]} 25. Nxg7 {[%clk
0:02:45.9]} 25... Qxg7 {[%clk 0:02:20.8]} 26. Qa1 {[%clk 0:02:46.5]} 26... Qg6
{[%clk 0:02:18.6]} 27. Rfd1 {[%clk 0:02:37]} 27... Nc5 {[%clk 0:02:15.5]} 28.
Qa3 {[%clk 0:02:29.3]} 28... g4 {[%clk 0:02:09]} 29. Nd4 {[%clk 0:02:27.9]}
29... Kg7 {[%clk 0:01:45.7]} 30. a5 {[%clk 0:02:24.7]} 30... Rh8 {[%clk
0:01:43.4]} 31. axb6 {[%clk 0:02:23.9]} 31... axb6 {[%clk 0:01:43.5]} 32. bxc6
{[%clk 0:02:23.8]} 32... dxc6 {[%clk 0:01:43.1]} 33. Qc3 {[%clk 0:02:20.2]}
33... f6 {[%clk 0:01:39.2]} 34. Ne2 {[%clk 0:02:15.1]} 34... Qh7 {[%clk
0:01:30.8]} 35. Rh1 {[%clk 0:02:14.6]} 35... Qxd3 {[%clk 0:01:29.9]} 36. Qxd3
{[%clk 0:01:59.8]} 36... Nxd3 {[%clk 0:01:30.4]} 37. Rxh8 {[%clk 0:01:58.9]}
37... Rxh8 {[%clk 0:01:26.8]} 38. Ra1 {[%clk 0:01:43.8]} 38... Ne5 {[%clk
0:01:05.6]} 39. Ra7+ {[%clk 0:01:43]} 39... Kg6 {[%clk 0:01:05.4]} 40. e4 {[%clk
0:01:28.7]} 40... Nxc4 {[%clk 0:00:56.7]} 41. Nf4+ {[%clk 0:01:27.9]} 41... Kh6
{[%clk 0:00:56.4]} 42. Rf7 {[%clk 0:01:23.5]} 42... Rc8 {[%clk 0:00:41.2]} 43.
Rxf6+ {[%clk 0:01:14.8]} 43... Kh7 {[%clk 0:00:40.4]} 44. Rg6 {[%clk 0:00:57.3]}
44... Ne5 {[%clk 0:00:40]} 45. Rg5 {[%clk 0:00:55.6]} 45... Re8 {[%clk
0:00:38.4]} 46. Nh5 {[%clk 0:00:48.8]} 46... Kh6 {[%clk 0:00:36.7]} 47. Rf5
{[%clk 0:00:48.7]} 47... Kg6 {[%clk 0:00:35.4]} 48. Nf4+ {[%clk 0:00:35.5]}
48... Kg7 {[%clk 0:00:22.3]} 49. Rg5+ {[%clk 0:00:33.4]} 49... Kh6 {[%clk
0:00:20.8]} 50. Rh5+ {[%clk 0:00:31.5]} 50... Kg7 {[%clk 0:00:21.4]} 51. Rg5+
{[%clk 0:00:29.2]} 51... Kf6 {[%clk 0:00:17.4]} 52. Rf5+ {[%clk 0:00:28.9]}
52... Kg7 {[%clk 0:00:18.2]} 53. Nh5+ {[%clk 0:00:27.4]} 53... Kh7 {[%clk
0:00:15.5]} 54. Nf6+ {[%clk 0:00:27.9]} 54... Kg6 {[%clk 0:00:16.7]} 55. Nxe8
{[%clk 0:00:29.8]} 55... Nd3 {[%clk 0:00:15.5]} 56. Rf6+ {[%clk 0:00:26.5]}
56... Kg5 {[%clk 0:00:15.2]} 57. Rxc6 {[%clk 0:00:26.7]} 57... b5 {[%clk
0:00:16.7]} 58. Rb6 {[%clk 0:00:27.1]} 58... b4 {[%clk 0:00:16.4]} 59. Nc7
{[%clk 0:00:28]} 59... Kh5 {[%clk 0:00:08.9]} 60. Nd5 {[%clk 0:00:28.4]} 60...
b3 {[%clk 0:00:09.1]} 61. Nf4+ {[%clk 0:00:28.7]} 61... Nxf4+ {[%clk 0:00:09.8]}
62. gxf4 {[%clk 0:00:30.1]} 62... g3 {[%clk 0:00:10]} 63. fxg3 {[%clk
0:00:26.9]} 63... b2 {[%clk 0:00:09.6]} 64. Kh3 {[%clk 0:00:25.9]} 64... b1=Q
{[%clk 0:00:10]} 65. g4# {[%clk 0:00:26.6]} 1-0